Workbook

Sheet Lathund
A1: Principen för ifyllnad av excelen är enkel. Gröna flikar och fält fylls i, Röda flikar och fält är resultat. Gula flikar och ofärgade fält är data som inte bör ändras. När dokumentet öppnas behöver Macron aktiveras eftersom det används för att uppdatera pivottabeller och diagram i resultatflikarna. Dessa går även att uppdatera manuellt genom att trycka Alt+F5. Börja med att fylla i flliken Projektinformation. Fyll i namn på projektet, vilket skede projektet är i (under projektering eller under produktion) samt vilket byggår projektet har (detta måste fyllas i för att för att beräkning av gemensamma miljökrav ska göras). Om en procentuellt reduktionskrav på minskad klimatpåverkan har ställts på projektet så redovisas det under "krav minskad klimatpåverkan" vilket sedan kan jämföras med resultatet av kalkylen under "minskad klimatpåverkan enl. kalkyl". I rutan underlag mängder anges vilket underlag som använts för mängder till klimatkalkylen. Investeringskostnad och prisnivå samt en kort beskrivning av åtgärder görs också. I rutan Klimatpåverkan per investerad kr (kg CO2ekv / kr). Gemensamma miljökrav redovisas den klimatpåverkan som uppstår till följd av projektet per investerad krona. Därefter går man vidare till fliken Förenklad klimatkalkyl. Börja med att fylla i mängder i vänsta delen av kalkylbladet för de material som är aktuella. För betong finns 3 st variationer på Hållfasthetsklasser och exponeringsklasser. - Betong Generellt värde (Hållfasthetsklass C35/45 samt exponeringsklass XD3, XS3 och XF4) - Betong (Hållfasthetsklass C40/50 samt exponeringsklass XD3) - Betong (HållfasthetsklassC32/40 samt exponeringsklass XD2, XS2 och XF2) För anläggningssten finns 5 olika alternativ på material samt möjligheter att ändra enhet på smågatsten och storgatsten mellan m och m2. Dimensioner för varje post under anläggningssten finns redovisas och bygger på standarddimensioner i Göteborgs stads teknisk handbok. För asfalt finns möjligheten att ange tjocklek på den asfalt som används tillsammans med vilken area som ska asfalteras. Standardtjocklek framgår på de olika asfaltstyperna. För posterna Berg- och jordmassor så finns det poster för schakt och fyll samt om massorna klassas som Fall A (massor som återanvänds inom projektet) eller Fall B (massor som köps in eller körs iväg utanför projektet). Emmissionsfaktorerna som fylls i är de som rör inköp av dom "tillverkade" massorna dvs. Berg fall B , fyll och Jord fall B, fyll. Som emissionsfaktor för Berschakt fall A och fall B avses tillverkning av sprängmedel. Transportavstånd som fylls i fliken Förenklad klimatkalkyl gäller för bergschakt och avståndet som ska fyllas i är det mellan fabriken där sprängmedel hämtas från och byggarbetsplatsen. Transportavstånd som rör hanteringen av massorna anges i fliken arbetsmoment arbetsplatsen. Om beläggning av grus används så kan posten Berg fall B, fyll användas för att beräkna klimatpåverkan. När alla relevanta mängder är ifyllda så finns ett resultat för Referenskalkylen och för kalkylen Gemensamma miljökrav för det årtal som angivits i fliken projektinformation. Nästa moment blir att justera i tjockleck, mängder, emissionsfaktorer och transportavstånd för det klimatförbättrade alternativet. Som utgångspunkt hämtas tjocklek, mängder, emissionsfaktorer och transportavstånd från data i referenskalkylen eller gemensamma miljökrav. Om val i projekteringen har inneburit att mängder eller tjocklek minskat så ska detta fyllas i för det klimatförbättrade alternativet. Emissionsfaktor för ett klimatförbättrat material kan fyllas i. För att hitta alternativa material kan EPD eftersökas i databaser för epd:er. Några exempel på databaser: - www.environdec.com/library - https://klimatkalkyl.trafikverket.se/Verification, Databas över EPD:er som godkänts för användning i Trafikverkets projekt. Transportavstånd kan justeras genom att studera hur långt det är mellan fabrik där materialet tillverkas och byggarbetsplatsen. Om återbrukat material används så räknas emissionsfaktorn och transportavståndet ut manuellt baserat på andelen återbrukat material. Om hela posten består av återbrukat material kan emissionsfaktorn sättas till ett väldigt lågt värde exempelvis 0,0000001 (detta eftersom ett värde emissionsfaktorn behövs för att kunna beräkna klimatpåverkan) och transportavstånd sätts till det avstånd som materialet har transporterats mellan lagringsplats och byggarbetsplatsen. Om det i det återbrukande materialet ingår någon form av förädling, lagerhållning eller behandling av produkten så ska en emissionsfaktor A1-A3 anges som speglar momentet. Som exempel kan en åtebrukad smågatsten behöva lagerhållas och ytbehandlas innan den används på nytt på arbetsplatsen. Då görs en bedömning av hur stor andel av emissionsfaktorn för jungfrulig smågatsten som en sådan lagerhållning och ytbehandling bedöms innebära. Om en viss andel material har återbrukats så kan detta räknas enligt följande beräkningsexempel: För en byggarbetsplats så har 70 % av smågatstenen återbrukats. I referensalternativet har 1000 m smågatsten angivits i cellen för mängder. I mängdcellen för det klimatförbättrade alternativet anges 1000 eftersom inte själva mängden smågatsten har förändrats. Emissionsfaktorn för det klimatförbättrade alternativet beräknas med hjälp av formeln =(andel ej återbrukad smågatsten*emissionsfaktor) dvs. (0,3*0,05). Även transportavståndet har förändrats eftersom det för 70% av materialet inte behöver transporteras från fabriken till byggarbetsplatsen utan från en lagringsplats till byggaretsplatsen. I räkneexemplet är lagringsplatsen på ett avstånd av 5 km från byggarbetsplatsen och avståndet mellan fabrik och byggarbetsplatsen bedöms schablonmässigt vara samma avstånd som tidigare alltså 440 km. Detta innebär att även transportavståndet justeras manuellt enligt följande formel =((andel återbrukat material*transportavstånd lagringsplats till byggarbetsplats)+(andel ej återbrukat material*transportavstånd fabrik till byggarbetsplats) dvs. =((0,7*5)+(0,3*440)). När mängder, emissionsfaktorer och manuellt beräknad återbrukning har fyllts i för det klimatförbättrade alternativet så går användaren vidare till fliken arbetsmoment arbetsplatsen. I denna flik kan användaren justera vilka drivmedel för det klimatförbättrade alternativet som ska användas. Som defaultvärde är gemensamma miljökrav ifyllt. Om exempelvis en helelektrifierad entreprenad är aktuell kan användaren i rullistan välja El (ursprungsmärkt förnybar) för aktuella arbetsmoment på arbetsplatsen. Om en egen emissionsfaktor vill användas (exempelvis om man vill använda 50% EL och 50% HVO100) så finns det möjlighet att fylla i en "egen emissionsfaktor". Enligt exemplet så beräknas då en ny emissionsfaktor med 50% El och 50% HVO till ((0,5*0,39)+(0,5*0,04)). Här finns även möjlighet att justera både transportlängder och drivmedel för masstransporter av både fall A och fall B. När användaren har arbetat igenom denna arbetsgång så finns resultat beräknade i flikarna "resultat" och "resultat per material". Dessa resultat kan med fördel användas i "PM reducerad klimatpåverkan" för att illustrera resultatet av arbetet med minskad klimatpåverkan eller visa vilka material som har högst klimatpåverkan i aktuellt projekt. I fliken resultat presenteras de övergripande resultaten för hela projektet med cirkeldiagram för vilka material som ger upphov till störst klimatpåverkan. Cirkeldiagramen presenteras uppdelat på referenskalkylen, med gemensamma miljökrav och klimatförbättrat alternativ. I denna flik finns även ett stapeldiagram med jämförelse mellan vilka olika material som ger upphov till högst klimatpåverkan för alla 3 beräkningar. I fliken Resultat per material kan användaren fördjupa sin analys av hur mycket klimatpåverkan har minskat för olika materialtyper. I fliken Standardvärden finns värden som är standard och inte ska ändras. Exempel på värden som finns här är olika omvandlingsfaktorer, densitet och transportparametrar.

Sheet Projektinformation
B2: Namn projekt
B3: Skede
B4: Byggår | C4: 2026
B5: Krav minskad klimatpåverkan (%)
B6: Minskad klimatpåverkan enl. Kalkyl (%) | C6: ='Förenklad klimatkalkyl'!Q45 -> 
B7: Underlag mängder
B8: Datum på underlag
B9: Investeringskostnad (kr)
B10: Prisnivå
B11: Klimatpåverkan per investerad kr (kg CO2ekv / kr). Gemensamma miljökrav | C11: =IF(SUM(C9*'Förenklad klimatkalkyl'!J45=0)," ",'Förenklad klimatkalkyl'!J45/Projektinformation!C9) -> 
B12: Kort beskrivning av åtgärd

Sheet Förenklad klimatkalkyl
B4: malldatum: 2026-04-22
C5: Referenskalkyl | I5: Gemensamma miljökrav | L5: Utgångsläge entreprenad (klimatförbättrat alternativ) | P5: Skillnad klimatpåverkan % | R5: Skillnad klimatpåverkan [kg Co2-ekv]
A6: Materialtyp | B6: Material | C6: Tjocklek [mm] (Endast asfalt) | D6: Mängd | E6: Enhet | F6: Emissionsfaktor A1-A3 [kg CO2e/kg] | G6: Transportavstånd [km] | H6: Klimatpåverkan [kg CO2e] | I6: Emissionsfaktor A1-A3 [kg CO2e/kg] | J6: Klimatpåverkan [kg CO2e] | K6: Tjocklek [mm] (Endast asfalt) | L6: Mängd | M6: Emissionsfaktor A1-A3 [kg CO2e/kg] | N6: Transportavstånd [km] | O6: Klimatpåverkan [kg CO2e] | P6: Ref alt / gem miljökr. | Q6: Ref alt / klimatförb alt. | R6: Ref alt / gem miljökr. | S6: Ref alt / klimatförb alt.
A7: Betong | B7: Betong Generellt värde (C35/45 samt XD3, XS3 och XF4) | E7: m3 | F7: 0.164 | G7: 35 | H7: =($D$7*Standardvärden!C2*'Förenklad klimatkalkyl'!$F$7)+(Standardvärden!$D$8*'Förenklad klimatkalkyl'!$D$7*G7) -> 0 | I7: 0.132 | J7: =($D7*Standardvärden!$C$2*'Förenklad klimatkalkyl'!$I$7)+(Standardvärden!$D$8*'Förenklad klimatkalkyl'!$D7*$G7) -> 0 | L7: =D7 -> 0 | M7: =I7 -> 0.132 | N7: =G7 -> 35 | O7: =IF(SUM(L7*M7*N7)=0,"Fyll i värde L-N",($L$7*Standardvärden!C2*'Förenklad klimatkalkyl'!$M$7)+(Standardvärden!$D$8*'Förenklad klimatkalkyl'!$L$7*N7)) -> Fyll i värde L-N | P7: =IFERROR(-(H7-J7)/H7,"") ->  | Q7: =IFERROR(-((H7-O7)/H7),"") ->  | R7: =-(H7-J7) -> 0 | S7: =IFERROR(-(H7-O7),"") -> 
A8: Betong | B8: Betong (C40/50 samt XD3) | E8: m3 | F8: 0.161 | G8: 35 | H8: =($D$8*Standardvärden!C2*'Förenklad klimatkalkyl'!$F$8)+(Standardvärden!$D$8*'Förenklad klimatkalkyl'!$D$8*G8) -> 0 | I8: 0.132 | J8: =($D8*Standardvärden!$C$2*'Förenklad klimatkalkyl'!$I$8)+(Standardvärden!$D$8*'Förenklad klimatkalkyl'!$D8*$G8) -> 0 | L8: =D8 -> 0 | M8: =I8 -> 0.132 | N8: 35 | O8: =IF(SUM(L8*M8*N8)=0,"Fyll i värde L-N",($L$8*Standardvärden!C2*'Förenklad klimatkalkyl'!$M$8)+(Standardvärden!$D$8*'Förenklad klimatkalkyl'!$L$8*N8)) -> Fyll i värde L-N | R8: =-(H8-J8) -> 0 | S8: =IFERROR(-(H8-O8),"") -> 
A9: Betong | B9: Betong (C32/40 samt XD2, XS2 och XF2) | E9: m3 | F9: 0.151 | G9: 35 | H9: =($D$9*Standardvärden!C2*'Förenklad klimatkalkyl'!$F$9)+(Standardvärden!$D$8*'Förenklad klimatkalkyl'!$D$9*G9) -> 0 | I9: 0.121 | J9: =($D9*Standardvärden!$C$2*'Förenklad klimatkalkyl'!$I$9)+(Standardvärden!$D$8*'Förenklad klimatkalkyl'!$D9*$G9) -> 0 | L9: 0 | M9: =I9 -> 0.121 | N9: 35 | O9: =IF(SUM(L9*M9*N9)=0,"Fyll i värde L-N",($L$9*Standardvärden!C2*'Förenklad klimatkalkyl'!$M$9)+(Standardvärden!$D$8*'Förenklad klimatkalkyl'!$L$9*N9)) -> Fyll i värde L-N | R9: 0
A10: Anläggningssten | B10: Kantstöd (Beteckning:RV4, BxH:100x300 mm) | E10: m | F10: 0.05 | G10: 440 | H10: =$D$10*Standardvärden!C37*('Förenklad klimatkalkyl'!$F$10*0.3*0.1)+(Standardvärden!E54*('Förenklad klimatkalkyl'!$D$10*0.3*0.1)*G10) -> 0 | I10: saknas | J10: =H10 -> 0 | L10: 0 | M10: =F10 -> 0.05 | N10: 440 | O10: =IF(SUM(L10*M10*N10)=0,"Fyll i värde L-N",IF(E10="m",($L$10*Standardvärden!C37*('Förenklad klimatkalkyl'!$M$10*0.3*0.1))+(Standardvärden!E54*('Förenklad klimatkalkyl'!$L$10*0.3*0.1)*N10),)) -> Fyll i värde L-N | P10: =IFERROR(-(H10-J10)/H10,"") ->  | R10: 0
A11: Anläggningssten | B11: Smågatsten (BxH:90 x 90 mm) | E11: m2 | F11: 0.05 | G11: 440 | H11: =IF(E11="m",($D$11*Standardvärden!C37*('Förenklad klimatkalkyl'!$F$11*0.09*0.09))+(Standardvärden!E54*('Förenklad klimatkalkyl'!$D$11*0.09*0.09)*G11),(IF(E11="m2",($D$11*Standardvärden!C37*('Förenklad klimatkalkyl'!$F$11*0.09))+(Standardvärden!E54*('Förenklad klimatkalkyl'!$D$11*0.09)*G11),0))) -> 0 | I11: saknas | J11: =H11 -> 0 | L11: 0 | M11: =F11 -> 0.05 | N11: 440 | O11: =IF(SUM(L11*M11*N11)=0,"Fyll i värde L-N",IF(E11="m",($L$11*Standardvärden!C37*('Förenklad klimatkalkyl'!$M$11*0.09*0.09))+(Standardvärden!E54*('Förenklad klimatkalkyl'!$L$11*0.09*0.09)*N11),(IF(E11="m2",($L$11*Standardvärden!C37*('Förenklad klimatkalkyl'!$M$11*0.09))+(Standardvärden!E54*('Förenklad klimatkalkyl'!$L$11*0.09)*N11),0)))) -> Fyll i värde L-N | P11: =IFERROR(-(H11-J11)/H11,"") ->  | R11: 0
A12: Anläggningssten | B12: Storgatsten (BxH:140 x 140 mm) | E12: m2 | F12: 0.05 | G12: 440 | H12: =IF(E12="m",($D$12*Standardvärden!C37*('Förenklad klimatkalkyl'!$F$12*0.14*0.14))+(Standardvärden!E54*('Förenklad klimatkalkyl'!$D$12*0.14*0.14)*G12),(IF(E12="m2",($D$12*Standardvärden!C37*('Förenklad klimatkalkyl'!$F$12*0.14))+(Standardvärden!E54*('Förenklad klimatkalkyl'!$D$12*0.14)*G12),0))) -> 0 | I12: saknas | J12: =H12 -> 0 | L12: 0 | M12: =F12 -> 0.05 | N12: 440 | O12: =IF(SUM(L12*M12*N12)=0,"Fyll i värde L-N",IF(E12="m",($L$12*Standardvärden!C37*('Förenklad klimatkalkyl'!$M$12*0.14*0.14))+(Standardvärden!E54*('Förenklad klimatkalkyl'!$L$12*0.14*0.14)*N12),(IF(E12="m2",($L$12*Standardvärden!C37*('Förenklad klimatkalkyl'!$M$12*0.14))+(Standardvärden!E54*('Förenklad klimatkalkyl'!$L$12*0.14)*N12),0)))) -> Fyll i värde L-N | R12: 0
A13: Anläggningssten | B13: Naturstensplattor (Tjocklek 120 mm) | E13: m2 | F13: 0.05 | G13: 440 | H13: =($D$13*Standardvärden!C37*('Förenklad klimatkalkyl'!$F$13*0.12))+(Standardvärden!E54*('Förenklad klimatkalkyl'!$D$13*0.12)*G13) -> 0 | I13: saknas | J13: =H13 -> 0 | L13: 0 | M13: =F13 -> 0.05 | N13: 440 | O13: =IF(SUM(L13*M13*N13)=0,"Fyll i värde L-N",($L$13*Standardvärden!C37*('Förenklad klimatkalkyl'!$M$13*0.12))+(Standardvärden!E54*('Förenklad klimatkalkyl'!$L$13*0.12)*N13)) -> Fyll i värde L-N | R13: 0
A14: Anläggningssten | B14: Anläggningssten, generellt värde | E14: m3 | F14: 0.05 | G14: 440 | H14: =($D$14*Standardvärden!C37*'Förenklad klimatkalkyl'!$F$14)+(Standardvärden!E54*'Förenklad klimatkalkyl'!$D$14*G14) -> 0 | I14: saknas | J14: =H14 -> 0 | L14: 0 | M14: =F14 -> 0.05 | N14: 440 | O14: =IF(SUM(L14*M14*N14)=0,"Fyll i värde L-N",($L$14*Standardvärden!C37*'Förenklad klimatkalkyl'!$M$14)+(Standardvärden!E54*'Förenklad klimatkalkyl'!$L$14*N14)) -> Fyll i värde L-N | R14: 0
A15: Stål | B15: Stål, armering, slakarmering | E15: ton | F15: 0.52 | G15: 840 | H15: =(D15*Standardvärden!$C$11*'Förenklad klimatkalkyl'!F15)+(Standardvärden!$E$33*'Förenklad klimatkalkyl'!D15*G15) -> 0 | I15: 0.52 | J15: =(D15*Standardvärden!$C$11*'Förenklad klimatkalkyl'!I15)+(Standardvärden!$E$33*'Förenklad klimatkalkyl'!D15*G15) -> 0 | L15: 0 | M15: =I15 -> 0.52 | N15: 840 | O15: =IF(SUM(L15*M15*N15)=0,"Fyll i värde L-N",(L15*Standardvärden!$C$11*'Förenklad klimatkalkyl'!M15)+(Standardvärden!$E$33*'Förenklad klimatkalkyl'!L15*N15)) -> Fyll i värde L-N | R15: 0
A16: Stål | B16: Stål, armering, spännarmering | E16: ton | F16: 1.77 | G16: 840 | H16: =(D16*Standardvärden!$C$11*'Förenklad klimatkalkyl'!F16)+(Standardvärden!$E$33*'Förenklad klimatkalkyl'!D16*G16) -> 0 | I16: saknas | J16: =H16 -> 0 | L16: 0 | M16: =F16 -> 1.77 | N16: 840 | O16: =IF(SUM(L16*M16*N16)=0,"Fyll i värde L-N",(L16*Standardvärden!$C$11*'Förenklad klimatkalkyl'!M16)+(Standardvärden!$E$33*'Förenklad klimatkalkyl'!L16*N16)) -> Fyll i värde L-N | R16: 0
A17: Stål | B17: Stål, konstruktion, ej varmförzinkat | E17: ton | F17: 2.27 | G17: 1340 | H17: =(D17*Standardvärden!$C$11*'Förenklad klimatkalkyl'!F17)+(Standardvärden!$E$33*'Förenklad klimatkalkyl'!D17*G17) -> 0 | I17: saknas | J17: =H17 -> 0 | L17: 0 | M17: =F17 -> 2.27 | N17: 1340 | O17: =IF(SUM(L17*M17*N17)=0,"Fyll i värde L-N",(L17*Standardvärden!$C$11*'Förenklad klimatkalkyl'!M17)+(Standardvärden!$E$33*'Förenklad klimatkalkyl'!L17*N17)) -> Fyll i värde L-N | R17: 0
A18: Stål | B18: Stål, rostfritt | E18: ton | F18: 3.42 | G18: 1340 | H18: =(D18*Standardvärden!$C$11*'Förenklad klimatkalkyl'!F18)+(Standardvärden!$E$33*'Förenklad klimatkalkyl'!D18*G18) -> 0 | I18: saknas | J18: =H18 -> 0 | L18: 0 | M18: =F18 -> 3.42 | N18: 1340 | O18: =IF(SUM(L18*M18*N18)=0,"Fyll i värde L-N",(L18*Standardvärden!$C$11*'Förenklad klimatkalkyl'!M18)+(Standardvärden!$E$33*'Förenklad klimatkalkyl'!L18*N18)) -> Fyll i värde L-N | R18: 0
A19: Asfalt | B19: Asfalt, Abb (standardtjocklek 50 mm) | C19: 50 | E19: m2 | F19: 0.03 | G19: 50 | H19: =((C19/50)*$D$19*Standardvärden!$J$3*'Förenklad klimatkalkyl'!F19)+(Standardvärden!$M$8*'Förenklad klimatkalkyl'!$D$19*(C19/50)*G19)+($D$19*'Arbetsmoment arbetsplatsen'!D5*'Arbetsmoment arbetsplatsen'!O4) -> 0 | I19: =VLOOKUP(Projektinformation!$C$4,Standardvärden!$P$4:$Z$10,6) -> 0.026 | J19: =((C19/50)*$D19*Standardvärden!$J$3*'Förenklad klimatkalkyl'!I19)+(Standardvärden!$M$8*(C19/50)*'Förenklad klimatkalkyl'!$D19*G19)+($D19*'Arbetsmoment arbetsplatsen'!D5*'Arbetsmoment arbetsplatsen'!O12) -> 0 | K19: =C19 -> 50 | L19: 0 | M19: =I19 -> 0.026 | N19: =G19 -> 50 | O19: =IF(SUM(K19*L19*M19*N19)=0,"Fyll i värde K-N",((K19/50)*$L$19*Standardvärden!$J$3*'Förenklad klimatkalkyl'!M19)+(Standardvärden!$M$8*(K19/50)*'Förenklad klimatkalkyl'!$L$19*N19)+($L$19*'Arbetsmoment arbetsplatsen'!D5*'Arbetsmoment arbetsplatsen'!D7)) -> Fyll i värde K-N | Q19: =IFERROR(-((H19-O19)/H19),"") ->  | R19: 0
A20: Asfalt | B20: Asfalt, ABb PMB (standardtjocklek 50 mm) | C20: 50 | E20: m2 | F20: 0.036 | G20: 50 | H20: =((C20/50)*D20*Standardvärden!J3*'Förenklad klimatkalkyl'!F20)+(Standardvärden!M8*'Förenklad klimatkalkyl'!D20*(C20/50)*G20)+($D$20*'Arbetsmoment arbetsplatsen'!D5*'Arbetsmoment arbetsplatsen'!O4) -> 0 | I20: =VLOOKUP(Projektinformation!$C$4,Standardvärden!$P$4:$Z$10,7) -> 0.031 | J20: =((C20/50)*$D20*Standardvärden!$J$3*'Förenklad klimatkalkyl'!I20)+(Standardvärden!$M$8*(C20/50)*'Förenklad klimatkalkyl'!$D20*G20)+($D20*'Arbetsmoment arbetsplatsen'!D5*'Arbetsmoment arbetsplatsen'!O12) -> 0 | K20: 50 | L20: 0 | M20: 0.031 | N20: 50 | O20: =IF(SUM(K20*L20*M20*N20)=0,"Fyll i värde K-N",((K20/50)*L20*Standardvärden!J3*'Förenklad klimatkalkyl'!M20)+(Standardvärden!M8*(K20/50)*'Förenklad klimatkalkyl'!L20*N20)+(L20*'Arbetsmoment arbetsplatsen'!D5*'Arbetsmoment arbetsplatsen'!D7)) -> Fyll i värde K-N | R20: 0
A21: Asfalt | B21: Asfalt, ABS (standardtjocklek 40 mm) | C21: 40 | E21: m2 | F21: 0.04 | G21: 50 | H21: =((C21/40)*D21*Standardvärden!J4*'Förenklad klimatkalkyl'!F21)+(Standardvärden!M9*(C21/40)*'Förenklad klimatkalkyl'!D21*G21)+((D21*'Arbetsmoment arbetsplatsen'!D5*'Arbetsmoment arbetsplatsen'!O4)) -> 0 | I21: =VLOOKUP(Projektinformation!$C$4,Standardvärden!$P$4:$Z$10,4) -> 0.03 | J21: =((C21/40)*$D21*Standardvärden!$J$4*'Förenklad klimatkalkyl'!I21)+(Standardvärden!$M$9*(C21/40)*'Förenklad klimatkalkyl'!$D21*G21)+($D21*'Arbetsmoment arbetsplatsen'!D5*'Arbetsmoment arbetsplatsen'!O12) -> 0 | K21: 40 | L21: 0 | M21: 0.03 | N21: 50 | O21: =IF(SUM(K21*L21*M21*N21)=0,"Fyll i värde K-N",((K21/40)*L21*Standardvärden!J4*'Förenklad klimatkalkyl'!M21)+(Standardvärden!M9*(K21/40)*'Förenklad klimatkalkyl'!L21*N21)+(L21*'Arbetsmoment arbetsplatsen'!D5*'Arbetsmoment arbetsplatsen'!D7)) -> Fyll i värde K-N | R21: 0
A22: Asfalt | B22: Asfalt, ABS PMB (standardtjocklek 40 mm) | C22: 40 | E22: m2 | F22: 0.045 | G22: 50 | H22: =((C22/40)*D22*Standardvärden!J4*'Förenklad klimatkalkyl'!F22)+(Standardvärden!M9*(C22/40)*'Förenklad klimatkalkyl'!D22*G22)+(D22*'Arbetsmoment arbetsplatsen'!D5*'Arbetsmoment arbetsplatsen'!O4) -> 0 | I22: =VLOOKUP(Projektinformation!$C$4,Standardvärden!$P$4:$Z$10,5) -> 0.038 | J22: =((C22/40)*$D22*Standardvärden!$J$4*'Förenklad klimatkalkyl'!I22)+(Standardvärden!$M$9*(C22/40)*'Förenklad klimatkalkyl'!$D22*G22)+($D22*'Arbetsmoment arbetsplatsen'!D5*'Arbetsmoment arbetsplatsen'!O12) -> 0 | K22: 40 | L22: 0 | M22: 0.038 | N22: 50 | O22: =IF(SUM(K22*L22*M22*N22)=0,"Fyll i värde K-N",((K22/40)*L22*Standardvärden!J4*'Förenklad klimatkalkyl'!M22)+(Standardvärden!M9*(K22/40)*'Förenklad klimatkalkyl'!L22*N22)+(L22*'Arbetsmoment arbetsplatsen'!D5*'Arbetsmoment arbetsplatsen'!D7)) -> Fyll i värde K-N | R22: 0
A23: Asfalt | B23: Asfalt, ABT (standardtjocklek 40 mm) | C23: 40 | E23: m2 | F23: 0.034 | G23: 50 | H23: =((C23/40)*D23*Standardvärden!J5*'Förenklad klimatkalkyl'!F23)+(Standardvärden!M10*(C23/40)*'Förenklad klimatkalkyl'!D23*G23)+(D23*'Arbetsmoment arbetsplatsen'!D5*'Arbetsmoment arbetsplatsen'!O4) -> 0 | I23: =VLOOKUP(Projektinformation!$C$4,Standardvärden!$P$4:$Z$10,2) -> 0.026 | J23: =((C23/40)*$D23*Standardvärden!$J$5*'Förenklad klimatkalkyl'!I23)+(Standardvärden!$M$10*(C23/40)*'Förenklad klimatkalkyl'!$D23*G23)+($D23*'Arbetsmoment arbetsplatsen'!D5*'Arbetsmoment arbetsplatsen'!O12) -> 0 | K23: 40 | L23: 0 | M23: 0.026 | N23: 50 | O23: =IF(SUM(K23*L23*M23*N23)=0,"Fyll i värde K-N",((K23/40)*L23*Standardvärden!J5*'Förenklad klimatkalkyl'!M23)+(Standardvärden!M10*(K23/40)*'Förenklad klimatkalkyl'!L23*N23)+(L23*'Arbetsmoment arbetsplatsen'!D5*'Arbetsmoment arbetsplatsen'!D7)) -> Fyll i värde K-N | R23: 0
A24: Asfalt | B24: Asfalt, ABT PMB (standardtjocklek 40 mm) | C24: 40 | E24: m2 | F24: 0.04 | G24: 50 | H24: =((C24/40)*D24*Standardvärden!J5*'Förenklad klimatkalkyl'!F24)+(Standardvärden!M10*(C24/40)*'Förenklad klimatkalkyl'!D24*G24)+(D24*'Arbetsmoment arbetsplatsen'!D5*'Arbetsmoment arbetsplatsen'!O4) -> 0 | I24: =VLOOKUP(Projektinformation!$C$4,Standardvärden!$P$4:$Z$10,3) -> 0.034 | J24: =((C24/40)*$D24*Standardvärden!$J$5*'Förenklad klimatkalkyl'!I24)+(Standardvärden!$M$10*(C24/40)*'Förenklad klimatkalkyl'!$D24*G24)+($D24*'Arbetsmoment arbetsplatsen'!D5*'Arbetsmoment arbetsplatsen'!O12) -> 0 | K24: 40 | L24: 0 | M24: 0.034 | N24: 50 | O24: =IF(SUM(K24*L24*M24*N24)=0,"Fyll i värde K-N",((K24/40)*L24*Standardvärden!J5*'Förenklad klimatkalkyl'!M24)+(Standardvärden!M10*(K24/40)*'Förenklad klimatkalkyl'!L24*N24)+(L24*'Arbetsmoment arbetsplatsen'!D5*'Arbetsmoment arbetsplatsen'!D7)) -> Fyll i värde K-N | R24: 0
A25: Asfalt | B25: Asfalt, AG (standardtjocklek 60 mm) | C25: 60 | E25: m2 | F25: 0.028 | G25: 50 | H25: =((C25/60)*D25*Standardvärden!J6*'Förenklad klimatkalkyl'!F25)+(Standardvärden!M11*(C25/60)*'Förenklad klimatkalkyl'!D25*G25)+(D25*'Arbetsmoment arbetsplatsen'!D5*'Arbetsmoment arbetsplatsen'!O4) -> 0 | I25: =VLOOKUP(Projektinformation!$C$4,Standardvärden!$P$4:$Z$10,8) -> 0.024 | J25: =((C25/60)*$D25*Standardvärden!$J$6*'Förenklad klimatkalkyl'!I25)+(Standardvärden!$M$11*(C25/60)*'Förenklad klimatkalkyl'!$D25*G25)+($D25*'Arbetsmoment arbetsplatsen'!D5*'Arbetsmoment arbetsplatsen'!O12) -> 0 | K25: 60 | L25: 0 | M25: 0.024 | N25: 50 | O25: =IF(SUM(K25*L25*M25*N25)=0,"Fyll i värde K-N",((K25/60)*L25*Standardvärden!J6*'Förenklad klimatkalkyl'!M25)+(Standardvärden!M11*(K25/60)*'Förenklad klimatkalkyl'!L25*N25)+(L25*'Arbetsmoment arbetsplatsen'!D5*'Arbetsmoment arbetsplatsen'!D7)) -> Fyll i värde K-N | R25: 0
A26: Asfalt | B26: Asfalt, AG PMB (standardtjocklek 60 mm) | C26: 60 | E26: m2 | F26: 0.034 | G26: 50 | H26: =((C26/60)*D26*Standardvärden!J6*'Förenklad klimatkalkyl'!F26)+(Standardvärden!M11*(C26/60)*'Förenklad klimatkalkyl'!D26*G26)+(D26*'Arbetsmoment arbetsplatsen'!D5*'Arbetsmoment arbetsplatsen'!O4) -> 0 | I26: =VLOOKUP(Projektinformation!$C$4,Standardvärden!$P$4:$Z$10,9) -> 0.029 | J26: =((C26/60)*$D26*Standardvärden!$J$6*'Förenklad klimatkalkyl'!I26)+(Standardvärden!$M$11*(C26/60)*'Förenklad klimatkalkyl'!$D26*G26)+($D26*'Arbetsmoment arbetsplatsen'!D5*'Arbetsmoment arbetsplatsen'!O12) -> 0 | K26: 60 | L26: 0 | M26: 0.029 | N26: 50 | O26: =IF(SUM(K26*L26*M26*N26)=0,"Fyll i värde K-N",((K26/60)*L26*Standardvärden!J6*'Förenklad klimatkalkyl'!M26)+(Standardvärden!M11*(K26/60)*'Förenklad klimatkalkyl'!L26*N26)+(L26*'Arbetsmoment arbetsplatsen'!D5*'Arbetsmoment arbetsplatsen'!D7)) -> Fyll i värde K-N | R26: 0
A27: Asfalt | B27: Asfalt, MJAG (standardtjocklek 50 mm) | C27: 50 | E27: m2 | F27: 0.022 | G27: 50 | H27: =((C27/50)*D27*Standardvärden!J7*'Förenklad klimatkalkyl'!F27)+(Standardvärden!M12*(C27/50)*'Förenklad klimatkalkyl'!D27*G27)+(D27*'Arbetsmoment arbetsplatsen'!D5*'Arbetsmoment arbetsplatsen'!O4) -> 0 | I27: =VLOOKUP(Projektinformation!$C$4,Standardvärden!$P$4:$Z$10,10) -> 0.022 | J27: =((C27/50)*$D27*Standardvärden!$J$7*'Förenklad klimatkalkyl'!I27)+(Standardvärden!$M$12*(C27/50)*'Förenklad klimatkalkyl'!$D27*G27)+($D27*'Arbetsmoment arbetsplatsen'!D5*'Arbetsmoment arbetsplatsen'!O12) -> 0 | K27: 50 | L27: 0 | M27: 0.022 | N27: 50 | O27: =IF(SUM(K27*L27*M27*N27)=0,"Fyll i värde K-N",((K27/50)*L27*Standardvärden!J7*'Förenklad klimatkalkyl'!M27)+(Standardvärden!M12*(K27/50)*'Förenklad klimatkalkyl'!L27*N27)+(L27*'Arbetsmoment arbetsplatsen'!D5*'Arbetsmoment arbetsplatsen'!D7)) -> Fyll i värde K-N | P27: =IFERROR(-(H27-J27)/H27,"") ->  | Q27: =IFERROR(-((H27-O27)/H27),"") ->  | R27: 0
A28: Asfalt | B28: Asfalt, MJOG (standardtjocklek 50 mm) | C28: 50 | E28: m2 | F28: 0.022 | G28: 50 | H28: =((C28/50)*D28*Standardvärden!J7*'Förenklad klimatkalkyl'!F28)+(Standardvärden!M12*(C28/50)*'Förenklad klimatkalkyl'!D28*G28)+(D28*'Arbetsmoment arbetsplatsen'!D5*'Arbetsmoment arbetsplatsen'!O4) -> 0 | I28: =VLOOKUP(Projektinformation!$C$4,Standardvärden!$P$4:$Z$10,11) -> 0.022 | J28: =((C28/50)*$D28*Standardvärden!$J$7*'Förenklad klimatkalkyl'!I28)+(Standardvärden!$M$12*(C28/50)*'Förenklad klimatkalkyl'!$D28*G28)+($D28*'Arbetsmoment arbetsplatsen'!D5*'Arbetsmoment arbetsplatsen'!O12) -> 0 | K28: 50 | L28: 0 | M28: 0.022 | N28: 50 | O28: =IF(SUM(K28*L28*M28*N28)=0,"Fyll i värde K-N",((K28/50)*L28*Standardvärden!J7*'Förenklad klimatkalkyl'!M28)+(Standardvärden!M12*(K28/50)*'Förenklad klimatkalkyl'!L28*N28)+(L28*'Arbetsmoment arbetsplatsen'!D5*'Arbetsmoment arbetsplatsen'!D7)) -> Fyll i värde K-N | P28: =IFERROR(-(H28-J28)/H28,"") ->  | Q28: =IFERROR(-((H28-O28)/H28),"") ->  | R28: 0
A29: Asfalt | B29: Asfalt, generellt värde | E29: ton | F29: 0.04 | G29: 50 | H29: =($D$29*Standardvärden!$K$25*'Förenklad klimatkalkyl'!$F$29)+(Standardvärden!$M$13*'Förenklad klimatkalkyl'!$D$29*$G$29)+($D$29*'Arbetsmoment arbetsplatsen'!$D$3*'Arbetsmoment arbetsplatsen'!$D$4*'Arbetsmoment arbetsplatsen'!$O$4) -> 0 | I29: saknas | J29: =($D$29*Standardvärden!$K$25*'Förenklad klimatkalkyl'!$F$29)+(Standardvärden!$M$13*'Förenklad klimatkalkyl'!$D$29*$G$29)+($D$29*'Arbetsmoment arbetsplatsen'!$D$3*'Arbetsmoment arbetsplatsen'!$D$4*'Arbetsmoment arbetsplatsen'!O12) -> 0 | L29: 0 | M29: =F29 -> 0.04 | N29: 50 | O29: =IF(SUM(L29*M29*N29)=0,"Fyll i värde L-N",(L29*Standardvärden!K25*'Förenklad klimatkalkyl'!M29)+(Standardvärden!M13*'Förenklad klimatkalkyl'!L29*N29)+(L29*'Arbetsmoment arbetsplatsen'!D3*'Arbetsmoment arbetsplatsen'!D4*'Arbetsmoment arbetsplatsen'!D7)) -> Fyll i värde L-N | R29: 0
A30: Ledning av plaströr | B30: Ledning av plaströr, dränrör dim 200 | E30: m | F30: 1.8 | G30: 540 | H30: =(D30*Standardvärden!$K$31*F30)+(D30*G30*Standardvärden!$O$51) -> 0 | I30: saknas | J30: =H30 -> 0 | L30: 0 | M30: =F30 -> 1.8 | N30: =G30 -> 540 | O30: =IF(SUM(L30*M30*N30)=0,"Fyll i värde L-N",(L30*Standardvärden!$K$31*M30)+(L30*N30*Standardvärden!$O$51)) -> Fyll i värde L-N | R30: 0
A31: Ledning av plaströr | B31: Ledning av plaströr, markavloppsrör dim 225 | E31: m | F31: 1.8 | G31: 540 | H31: =(D31*Standardvärden!$K$32*F31)+(D31*G31*Standardvärden!$P$51) -> 0 | I31: saknas | J31: =H31 -> 0 | L31: 0 | M31: =F31 -> 1.8 | N31: =G31 -> 540 | O31: =IF(SUM(L31*M31*N31)=0,"Fyll i värde L-N",(L31*Standardvärden!$K$32*M31)+(L31*N31*Standardvärden!$P$51)) -> Fyll i värde L-N | R31: 0
A32: Bergmassor | B32: Berg Fall A, fyll | E32: m3 | F32: - | G32: - | H32: =($D$32*'Arbetsmoment arbetsplatsen'!$D$13*'Arbetsmoment arbetsplatsen'!$D$14*'Arbetsmoment arbetsplatsen'!$O$4)+($D$32*'Arbetsmoment arbetsplatsen'!$D$9*'Arbetsmoment arbetsplatsen'!$O$4)+($D$32*'Arbetsmoment arbetsplatsen'!$K$25*'Arbetsmoment arbetsplatsen'!$K$21*'Arbetsmoment arbetsplatsen'!J14*'Arbetsmoment arbetsplatsen'!$J$11*'Arbetsmoment arbetsplatsen'!$O$4*'Arbetsmoment arbetsplatsen'!$J$19) -> 0 | I32: A1-A3 saknas men drivmedelskrav finns | J32: =($D$32*'Arbetsmoment arbetsplatsen'!$D$13*'Arbetsmoment arbetsplatsen'!$D$14*'Arbetsmoment arbetsplatsen'!O12)+($D$32*'Arbetsmoment arbetsplatsen'!$D$9*'Arbetsmoment arbetsplatsen'!O12)+($D$32*'Arbetsmoment arbetsplatsen'!$K$25*'Arbetsmoment arbetsplatsen'!$K$21*'Arbetsmoment arbetsplatsen'!J14*'Arbetsmoment arbetsplatsen'!$J$11*'Arbetsmoment arbetsplatsen'!O12*'Arbetsmoment arbetsplatsen'!$J$19) -> 0 | L32: 0 | M32: - | N32: - | O32: =IF(SUM(L32)=0,"Fyll i värde L",(L32*'Arbetsmoment arbetsplatsen'!$D$13*'Arbetsmoment arbetsplatsen'!$D$14*'Arbetsmoment arbetsplatsen'!J13)+(L32*'Arbetsmoment arbetsplatsen'!$D$9*'Arbetsmoment arbetsplatsen'!J13)+(L32*'Arbetsmoment arbetsplatsen'!$K$25*'Arbetsmoment arbetsplatsen'!$K$21*'Arbetsmoment arbetsplatsen'!J16*'Arbetsmoment arbetsplatsen'!$J$11*'Arbetsmoment arbetsplatsen'!J13*'Arbetsmoment arbetsplatsen'!$J$19)) -> Fyll i värde L | R32: 0
A33: Bergmassor | B33: Berg Fall B, fyll | E33: m3 | F33: 0.003 | G33: - | H33: =($D$33*'Arbetsmoment arbetsplatsen'!$K$25*$F$33)+($D$33*'Arbetsmoment arbetsplatsen'!$K$25*'Arbetsmoment arbetsplatsen'!$K$21*'Arbetsmoment arbetsplatsen'!J5*'Arbetsmoment arbetsplatsen'!$J$2*'Arbetsmoment arbetsplatsen'!$O$4*'Arbetsmoment arbetsplatsen'!$J$19)+($D$33*'Arbetsmoment arbetsplatsen'!$D$9*'Arbetsmoment arbetsplatsen'!$O$4) -> 0 | I33: A1-A3 saknas men drivmedelskrav finns | J33: =($D$33*'Arbetsmoment arbetsplatsen'!$K$25*$F$33)+($D$33*'Arbetsmoment arbetsplatsen'!$K$25*'Arbetsmoment arbetsplatsen'!$K$21*'Arbetsmoment arbetsplatsen'!J5*'Arbetsmoment arbetsplatsen'!$J$2*'Arbetsmoment arbetsplatsen'!$O$12*'Arbetsmoment arbetsplatsen'!$J$19)+($D$33*'Arbetsmoment arbetsplatsen'!$D$9*'Arbetsmoment arbetsplatsen'!O12) -> 0 | L33: 0 | M33: =F33 -> 0.003 | N33: - | O33: =IF(SUM(L33*M33)=0,"Fyll i värde L-M",(L33*'Arbetsmoment arbetsplatsen'!$K$25*M33)+(L33*'Arbetsmoment arbetsplatsen'!$K$25*'Arbetsmoment arbetsplatsen'!$K$21*'Arbetsmoment arbetsplatsen'!J6*'Arbetsmoment arbetsplatsen'!$J$2*'Arbetsmoment arbetsplatsen'!J4*'Arbetsmoment arbetsplatsen'!$J$19)+(L33*'Arbetsmoment arbetsplatsen'!$D$9*'Arbetsmoment arbetsplatsen'!D11)) -> Fyll i värde L-M | R33: 0
A34: Bergmassor | B34: Bergschakt fall A | E34: m3 | F34: 1.32 | G34: 500 | H34: =($D$34*'Arbetsmoment arbetsplatsen'!$D$18*'Arbetsmoment arbetsplatsen'!$D$19*'Arbetsmoment arbetsplatsen'!$O$4)+($D$34*'Arbetsmoment arbetsplatsen'!$K$26*'Arbetsmoment arbetsplatsen'!$K$21*'Arbetsmoment arbetsplatsen'!$J$14*'Arbetsmoment arbetsplatsen'!$J$11*'Arbetsmoment arbetsplatsen'!$O$4*'Arbetsmoment arbetsplatsen'!$J$19)+($D$34*'Arbetsmoment arbetsplatsen'!$D$9*'Arbetsmoment arbetsplatsen'!$K$27*'Arbetsmoment arbetsplatsen'!$O$4)+($D$34*'Arbetsmoment arbetsplatsen'!$K$28*'Förenklad klimatkalkyl'!$F$34)+($D$34*'Arbetsmoment arbetsplatsen'!$K$28*'Arbetsmoment arbetsplatsen'!$K$21*$G$34*'Arbetsmoment arbetsplatsen'!$K$29*'Arbetsmoment arbetsplatsen'!$O$4*'Arbetsmoment arbetsplatsen'!$J$19) -> 0 | I34: A1-A3 saknas men drivmedelskrav finns | J34: =($D$34*'Arbetsmoment arbetsplatsen'!$D$18*'Arbetsmoment arbetsplatsen'!$D$19*'Arbetsmoment arbetsplatsen'!O12)+($D$34*'Arbetsmoment arbetsplatsen'!$K$26*'Arbetsmoment arbetsplatsen'!$K$21*'Arbetsmoment arbetsplatsen'!$J$14*'Arbetsmoment arbetsplatsen'!$J$11*'Arbetsmoment arbetsplatsen'!O12*'Arbetsmoment arbetsplatsen'!$J$19)+($D$34*'Arbetsmoment arbetsplatsen'!$D$9*'Arbetsmoment arbetsplatsen'!$K$27*'Arbetsmoment arbetsplatsen'!O12)+($D$34*'Arbetsmoment arbetsplatsen'!$K$28*$F$34)+($D$34*'Arbetsmoment arbetsplatsen'!$K$28*'Arbetsmoment arbetsplatsen'!$K$21*$G$34*'Arbetsmoment arbetsplatsen'!$K$29*'Arbetsmoment arbetsplatsen'!$O$4*'Arbetsmoment arbetsplatsen'!$J$19) -> 0 | L34: 0 | M34: =F34 -> 1.32 | N34: =G34 -> 500 | O34: =IF(SUM(L34*M34*N34)=0,"Fyll i värde L-N",($L$34*'Arbetsmoment arbetsplatsen'!$D$18*'Arbetsmoment arbetsplatsen'!$D$19*'Arbetsmoment arbetsplatsen'!D21)+($L$34*'Arbetsmoment arbetsplatsen'!$K$26*'Arbetsmoment arbetsplatsen'!$K$21*'Arbetsmoment arbetsplatsen'!$J$15*'Arbetsmoment arbetsplatsen'!$J$11*'Arbetsmoment arbetsplatsen'!J13*'Arbetsmoment arbetsplatsen'!$J$19)+($L$34*'Arbetsmoment arbetsplatsen'!$D$9*'Arbetsmoment arbetsplatsen'!$K$27*'Arbetsmoment arbetsplatsen'!D11)+($L$34*'Arbetsmoment arbetsplatsen'!$K$28*'Förenklad klimatkalkyl'!$M$34)+($L$34*'Arbetsmoment arbetsplatsen'!$K$28*'Arbetsmoment arbetsplatsen'!$K$21*$N$34*'Arbetsmoment arbetsplatsen'!$K$29*'Arbetsmoment arbetsplatsen'!$O$4*'Arbetsmoment arbetsplatsen'!$J$19)) -> Fyll i värde L-N | R34: 0
A35: Bergmassor | B35: Bergschakt fall B | E35: m3 | F35: 1.32 | G35: 500 | H35: =($D$35*'Arbetsmoment arbetsplatsen'!$K$26*'Arbetsmoment arbetsplatsen'!$K$21*'Arbetsmoment arbetsplatsen'!$J$5*'Arbetsmoment arbetsplatsen'!$K$27*'Arbetsmoment arbetsplatsen'!$O$4*'Arbetsmoment arbetsplatsen'!$J$19)+($D$35*'Arbetsmoment arbetsplatsen'!$D$9*'Arbetsmoment arbetsplatsen'!$K$27*'Arbetsmoment arbetsplatsen'!$O$4)+($D$35*'Arbetsmoment arbetsplatsen'!$D$18*'Arbetsmoment arbetsplatsen'!$D$19*'Arbetsmoment arbetsplatsen'!$O$4)+($D$35*'Arbetsmoment arbetsplatsen'!$K$28*$F$35)+($D$35*'Arbetsmoment arbetsplatsen'!$K$28*'Arbetsmoment arbetsplatsen'!$K$21*'Förenklad klimatkalkyl'!$G$35*'Arbetsmoment arbetsplatsen'!$K$29*'Arbetsmoment arbetsplatsen'!$O$4*'Arbetsmoment arbetsplatsen'!$J$19) -> 0 | I35: A1-A3 saknas men drivmedelskrav finns | J35: =($D$35*'Arbetsmoment arbetsplatsen'!$K$26*'Arbetsmoment arbetsplatsen'!$K$21*'Arbetsmoment arbetsplatsen'!J5*'Arbetsmoment arbetsplatsen'!$K$27*'Arbetsmoment arbetsplatsen'!$O$12*'Arbetsmoment arbetsplatsen'!$J$19)+($D$35*'Arbetsmoment arbetsplatsen'!$D$9*'Arbetsmoment arbetsplatsen'!$K$27*'Arbetsmoment arbetsplatsen'!O12)+($D$35*'Arbetsmoment arbetsplatsen'!$D$18*'Arbetsmoment arbetsplatsen'!$D$19*'Arbetsmoment arbetsplatsen'!O12)+($D$35*'Arbetsmoment arbetsplatsen'!$K$28*$F$35)+($D$35*'Arbetsmoment arbetsplatsen'!$K$28*'Arbetsmoment arbetsplatsen'!$K$21*'Förenklad klimatkalkyl'!$G$35*'Arbetsmoment arbetsplatsen'!$K$29*'Arbetsmoment arbetsplatsen'!$O$4*'Arbetsmoment arbetsplatsen'!$J$19) -> 0 | L35: 0 | M35: =F35 -> 1.32 | N35: =G35 -> 500 | O35: =IF(SUM(L35*M35*N35)=0,"Fyll i värde L-N",($L$35*'Arbetsmoment arbetsplatsen'!$K$26*'Arbetsmoment arbetsplatsen'!$K$21*'Arbetsmoment arbetsplatsen'!$J$5*'Arbetsmoment arbetsplatsen'!$K$27*'Arbetsmoment arbetsplatsen'!$J$4*'Arbetsmoment arbetsplatsen'!$J$19)+($L$35*'Arbetsmoment arbetsplatsen'!$D$9*'Arbetsmoment arbetsplatsen'!$K$27*'Arbetsmoment arbetsplatsen'!D11)+($L$35*'Arbetsmoment arbetsplatsen'!$D$18*'Arbetsmoment arbetsplatsen'!$D$19*'Arbetsmoment arbetsplatsen'!D21)+($L$35*'Arbetsmoment arbetsplatsen'!$K$28*$M$35)+($L$35*'Arbetsmoment arbetsplatsen'!$K$28*'Arbetsmoment arbetsplatsen'!$K$21*N35*'Arbetsmoment arbetsplatsen'!$K$29*'Arbetsmoment arbetsplatsen'!$O$4*'Arbetsmoment arbetsplatsen'!$J$19)) -> Fyll i värde L-N | R35: 0
A36: Jordmassor | B36: Jord Fall A, fyll | E36: m3 | F36: - | G36: - | H36: =($D$36*'Arbetsmoment arbetsplatsen'!$D$9*'Arbetsmoment arbetsplatsen'!$O$4)+($D$36*'Arbetsmoment arbetsplatsen'!$K$24*'Arbetsmoment arbetsplatsen'!$K$21*'Arbetsmoment arbetsplatsen'!J14*'Arbetsmoment arbetsplatsen'!$J$11*'Arbetsmoment arbetsplatsen'!$O$4*'Arbetsmoment arbetsplatsen'!$J$19) -> 0 | I36: A1-A3 saknas men drivmedelskrav finns | J36: =($D$36*'Arbetsmoment arbetsplatsen'!$D$9*'Arbetsmoment arbetsplatsen'!O12)+($D$36*'Arbetsmoment arbetsplatsen'!$K$24*'Arbetsmoment arbetsplatsen'!$K$21*'Arbetsmoment arbetsplatsen'!J14*'Arbetsmoment arbetsplatsen'!$J$11*'Arbetsmoment arbetsplatsen'!O12*'Arbetsmoment arbetsplatsen'!$J$19) -> 0 | L36: 0 | M36: - | N36: - | O36: =IF(SUM(L36)=0,"Fyll i värde L",($L$36*'Arbetsmoment arbetsplatsen'!$D$9*'Arbetsmoment arbetsplatsen'!J13)+($L$36*'Arbetsmoment arbetsplatsen'!$K$24*'Arbetsmoment arbetsplatsen'!$K$21*'Arbetsmoment arbetsplatsen'!J18*'Arbetsmoment arbetsplatsen'!$J$11*'Arbetsmoment arbetsplatsen'!J13*'Arbetsmoment arbetsplatsen'!$J$19)) -> Fyll i värde L | R36: 0
A37: Jordmassor | B37: Jord Fall B, fyll | E37: m3 | F37: 0.0003 | G37: - | H37: =($D$37*'Arbetsmoment arbetsplatsen'!$D$9*'Arbetsmoment arbetsplatsen'!$O$4)+($D$37*'Arbetsmoment arbetsplatsen'!$K$24*$F$37)+($D$37*'Arbetsmoment arbetsplatsen'!$K$24*'Arbetsmoment arbetsplatsen'!$K$21*'Arbetsmoment arbetsplatsen'!J5*'Arbetsmoment arbetsplatsen'!$J$2*'Arbetsmoment arbetsplatsen'!$O$4*'Arbetsmoment arbetsplatsen'!$J$19) -> 0 | I37: A1-A3 saknas men drivmedelskrav finns | J37: =($D$37*'Arbetsmoment arbetsplatsen'!$D$9*'Arbetsmoment arbetsplatsen'!O12)+($D$37*'Arbetsmoment arbetsplatsen'!$K$24*$F$37)+($D$37*'Arbetsmoment arbetsplatsen'!$K$24*'Arbetsmoment arbetsplatsen'!$K$21*'Arbetsmoment arbetsplatsen'!J5*'Arbetsmoment arbetsplatsen'!$J$2*'Arbetsmoment arbetsplatsen'!$O$12*'Arbetsmoment arbetsplatsen'!$J$19) -> 0 | L37: 0 | M37: =F37 -> 0.0003 | N37: - | O37: =IF(SUM(L37*M37)=0,"Fyll i värde L-M",($L$37*'Arbetsmoment arbetsplatsen'!$D$9*'Arbetsmoment arbetsplatsen'!D11)+($L$37*'Arbetsmoment arbetsplatsen'!$K$24*$M$37)+($L$37*'Arbetsmoment arbetsplatsen'!$K$24*'Arbetsmoment arbetsplatsen'!$K$21*'Arbetsmoment arbetsplatsen'!J9*'Arbetsmoment arbetsplatsen'!$J$2*'Arbetsmoment arbetsplatsen'!$J$4*'Arbetsmoment arbetsplatsen'!$J$19)) -> Fyll i värde L-M | R37: 0
A38: Jordmassor | B38: Jordschakt Fall A | E38: m3 | F38: - | G38: - | H38: =($D$38*'Arbetsmoment arbetsplatsen'!$D$9*'Arbetsmoment arbetsplatsen'!$O$4)+($D$38*'Arbetsmoment arbetsplatsen'!$K$24*'Arbetsmoment arbetsplatsen'!$K$21*'Arbetsmoment arbetsplatsen'!J14*'Arbetsmoment arbetsplatsen'!$J$11*'Arbetsmoment arbetsplatsen'!$O$4*'Arbetsmoment arbetsplatsen'!$J$19)+($D$38*'Arbetsmoment arbetsplatsen'!$D$23*'Arbetsmoment arbetsplatsen'!$D$24*'Arbetsmoment arbetsplatsen'!$O$4) -> 0 | I38: A1-A3 saknas men drivmedelskrav finns | J38: =($D$38*'Arbetsmoment arbetsplatsen'!$D$9*'Arbetsmoment arbetsplatsen'!O12)+($D$38*'Arbetsmoment arbetsplatsen'!$K$24*'Arbetsmoment arbetsplatsen'!$K$21*'Arbetsmoment arbetsplatsen'!J14*'Arbetsmoment arbetsplatsen'!$J$11*'Arbetsmoment arbetsplatsen'!O12*'Arbetsmoment arbetsplatsen'!$J$19)+($D$38*'Arbetsmoment arbetsplatsen'!$D$23*'Arbetsmoment arbetsplatsen'!$D$24*'Arbetsmoment arbetsplatsen'!O12) -> 0 | L38: 0 | M38: - | N38: - | O38: =IF(SUM(L38)=0,"Fyll i värde L",($L$38*'Arbetsmoment arbetsplatsen'!$D$9*'Arbetsmoment arbetsplatsen'!D11)+($L$38*'Arbetsmoment arbetsplatsen'!$K$24*'Arbetsmoment arbetsplatsen'!$K$21*'Arbetsmoment arbetsplatsen'!J17*'Arbetsmoment arbetsplatsen'!$J$11*'Arbetsmoment arbetsplatsen'!J13*'Arbetsmoment arbetsplatsen'!$J$19)+($L$38*'Arbetsmoment arbetsplatsen'!$D$23*'Arbetsmoment arbetsplatsen'!$D$24*'Arbetsmoment arbetsplatsen'!D26)) -> Fyll i värde L | R38: 0
A39: Jordmassor | B39: Jordschakt Fall B | E39: m3 | F39: - | G39: - | H39: =($D$39*'Arbetsmoment arbetsplatsen'!$D$9*'Arbetsmoment arbetsplatsen'!$O$4)+($D$39*'Arbetsmoment arbetsplatsen'!$K$24*'Arbetsmoment arbetsplatsen'!$K$21*'Arbetsmoment arbetsplatsen'!J5*'Arbetsmoment arbetsplatsen'!$J$2*'Arbetsmoment arbetsplatsen'!$O$4*'Arbetsmoment arbetsplatsen'!$J$19)+($D$39*'Arbetsmoment arbetsplatsen'!$D$23*'Arbetsmoment arbetsplatsen'!$D$24*'Arbetsmoment arbetsplatsen'!$O$4) -> 0 | I39: A1-A3 saknas men drivmedelskrav finns | J39: =($D$39*'Arbetsmoment arbetsplatsen'!$D$9*'Arbetsmoment arbetsplatsen'!O12)+($D$39*'Arbetsmoment arbetsplatsen'!$K$24*'Arbetsmoment arbetsplatsen'!$K$21*'Arbetsmoment arbetsplatsen'!J5*'Arbetsmoment arbetsplatsen'!$J$2*'Arbetsmoment arbetsplatsen'!$O$12*'Arbetsmoment arbetsplatsen'!$J$19)+($D$39*'Arbetsmoment arbetsplatsen'!$D$23*'Arbetsmoment arbetsplatsen'!$D$24*'Arbetsmoment arbetsplatsen'!O12) -> 0 | L39: 0 | M39: - | N39: - | O39: =IF(SUM(L39)=0,"Fyll i värde L",($L$39*'Arbetsmoment arbetsplatsen'!$D$9*'Arbetsmoment arbetsplatsen'!D11)+($L$39*'Arbetsmoment arbetsplatsen'!$K$24*'Arbetsmoment arbetsplatsen'!$K$21*'Arbetsmoment arbetsplatsen'!J8*'Arbetsmoment arbetsplatsen'!$J$2*'Arbetsmoment arbetsplatsen'!$J$4*'Arbetsmoment arbetsplatsen'!$J$19)+($L$39*'Arbetsmoment arbetsplatsen'!$D$23*'Arbetsmoment arbetsplatsen'!$D$24*'Arbetsmoment arbetsplatsen'!D26)) -> Fyll i värde L | R39: 0
A40: Lättfyllnad | B40: Lager av cellplast XPS eller EPS | E40: m3 | F40: 3.24 | G40: 840 | H40: =(D40*Standardvärden!R14*F40)+(D40*G40*Standardvärden!U33) -> 0 | I40: saknas | J40: =H40 -> 0 | L40: =D40 -> 0 | M40: =F40 -> 3.24 | N40: =G40 -> 840 | O40: =IF(SUM(L40*M40*N40)=0,"Fyll i värde L-N",((L40*Standardvärden!R14*M40)+(L40*N40*Standardvärden!U33))) -> Fyll i värde L-N | R40: 0
A41: Lättfyllnad | B41: Skumglas | E41: m3 | F41: 0.043 | G41: 340 | H41: =(D41*Standardvärden!Z14*F41)+(D41*Standardvärden!AC33*G41) -> 0 | I41: saknas | J41: =H41 -> 0 | L41: =D41 -> 0 | M41: 0.043 | N41: 340 | O41: =IF(SUM(L41*M41*N41)=0,"Fyll i värde L-N",(L41*Standardvärden!Z14*M41)+(L41*Standardvärden!AC33*N41)) -> Fyll i värde L-N | R41: 0
A42: Lättfyllnad | B42: Lättklinker | E42: m3 | F42: 0.298 | G42: 840 | H42: =(D42*Standardvärden!T41*'Förenklad klimatkalkyl'!F42)+(D42*Standardvärden!W60*G42) -> 0 | I42: saknas | J42: =H42 -> 0 | L42: =D42 -> 0 | M42: =F42 -> 0.298 | N42: =G42 -> 840 | O42: =IF(SUM(L42*M42*N42)=0,"Fyll i värde L-N",(L42*Standardvärden!T41*M42)+(L42*Standardvärden!W60*N42)) -> Fyll i värde L-N | R42: 0
A43: Stödmur | B43: Stödmur prefabricerad, L-stöd. Höjd 1 meter | E43: m | F43: 0.187 | G43: 440 | H43: =D43*Standardvärden!AB41*F43+D43*Standardvärden!AE62*G43 -> 0 | I43: saknas | J43: =H43 -> 0 | L43: =D43 -> 0 | M43: =F43 -> 0.187 | N43: =G43 -> 440 | O43: =IF(SUM(L43*M43*N43)=0,"Fyll i värde L-N",(L43*Standardvärden!AB41*M43+L43*Standardvärden!AE62*N43)) -> Fyll i värde L-N | R43: 0
A44: Stödmur | B44: Stödmur prefabricerad, L-stöd. Höjd 2 meter | E44: m | F44: 0.189 | G44: 440 | H44: =D44*Standardvärden!AB42*F44+D44*Standardvärden!AE63*G44 -> 0 | I44: saknas | J44: =H44 -> 0 | L44: =D44 -> 0 | M44: =F44 -> 0.189 | N44: 440 | O44: =IF(SUM(L44*M44*N44)=0,"Fyll i värde L-N",(L44*Standardvärden!AB42*M44+L44*Standardvärden!AE63*N44)) -> Fyll i värde L-N | R44: 0
G45: Total | H45: =SUM(H7:H44) -> 0 | I45: Total | J45: =SUM(J7:J44) -> 0 | N45: Total | O45: =IF(SUM(O7:O44)=0,"",SUM(O7:O44)) ->  | P45: =IFERROR(-(H45-J45)/H45,"") ->  | Q45: =IFERROR(-(H45-O45)/H45,"") ->  | R45: 0 | S45: =IFERROR(-(H45-O45),"") -> 

Sheet Arbetsmoment arbetsplatsen
A1: Asfaltsutläggning | G1: Lastbil regiontransport för fall B massor | N1: Emmisionsfaktorer alternativa drivmedel | O1: kg CO2e/l dieselekvivalenter
A2: Antal utläggningar m2 | D2: 1 | E2: st/m2 | G2: Dieselförbrukning | J2: 1.5 | K2: MJ/tkm | N2: Drivmedel | O2: Emissionsfaktor
A3: Antal utläggningar ton | D3: 7.4 | E3: st/ton | G3: Drivmedel klimatförbättrat alt. | J3: Gemensamma miljökrav | N3: Biogas | O3: 0.6
A4: Dieselförbrukning | D4: 0.0964 | E4: l/st | G4: Emissionsfaktor drivmedel | J4: =VLOOKUP(J3,N3:O16,2) -> 1.113 | K4: kg CO2e/l | N4: Diesel | O4: 2.8
A5: Diesel ekv per m2 | D5: =D2*D4 -> 0.0964 | E5: l/m2 | G5: Transportlängd fall B schablon | J5: 30 | K5: km | N5: E85 | O5: 1.72
A6: Drivmedel klimatförbättrat alt. | D6: Gemensamma miljökrav | G6: Just. transportlängd Bergschakt | J6: 30 | K6: km | N6: ED95 | O6: 1
A7: Emissionsfaktor drivmedel | D7: =VLOOKUP(D6,N3:O17,2) -> 1.113 | E7: kg CO2e/l | G7: Just. transportlängd Berg Fyll | J7: 30 | K7: km | N7: Egen emissionsfaktor | Q7: Kan fyllas i för beräkning med andel av olika drivmedel
A8: Grävmaskin | G8: Just. transportlängd Jordschakt | J8: 30 | K8: km | N8: El (residual) | O8: 0.19
A9: Dieselförbrukning | D9: 0.1861130995 | E9: l/m3 | G9: Just. transportlängd Jord fyll | J9: 30 | K9: km | N9: El (ursprungsmärkt förnybar) | O9: 0.04
A10: Drivmedel klimatförbättrat alt. | D10: Gemensamma miljökrav | H10: Dumper Fall A massor | N10: FAME | O10: 1.1
A11: Emissionsfaktor drivmedel | D11: =VLOOKUP(D10,N3:O15,2) -> 1.113 | E11: kg CO2e/l | G11: Dieselförbrukning | J11: 6.27 | K11: MJ/tkm | N11: Fordonsgas | O11: 0.89
A12: Krossning mobilt verk | G12: Drivmedel klimatförbättrat alt. | J12: Gemensamma miljökrav | N12: Gemensamma miljökrav | O12: =VLOOKUP(Projektinformation!C4,'Arbetsmoment arbetsplatsen'!N20:P27,3) -> 1.113
A13: Energiåtgång krossning | D13: 71.08208228 | E13: MJ/m3 | G13: Emissionsfaktor drivmedel | J13: =VLOOKUP(J12,N3:O16,2) -> 1.113 | K13: kg CO2e/l | N13: HVO 100 | O13: 0.39
A14: Inverterat värmevärde Diesel | D14: 0.028345 | E14: l/MJ | G14: Transportlängd fall A schablon | J14: 2 | K14: km | N14: LNG/LBG | O14: 3.48
A15: Drivmedel klimatförbättrat alt. | D15: Gemensamma miljökrav | G15: Just. Transportlängd Bergschakt | J15: 2 | K15: km | N15: Vätgas i bränslecell (förnybar från biomassa) | O15: 1.12
A16: Emissionsfaktor drivmedel | D16: =VLOOKUP(D15,N3:O15,2) -> 1.113 | E16: kg CO2e/l | G16: Just. Transportlängd Berg fyll | J16: 2 | K16: km | N16: Vätgas i bränslecell (Förnybar från vindkraft) | O16: 0.22
A17: Borrning | G17: Just. Transportlängd Jordschakt | J17: 2 | K17: km | N17: Vätgas i bränslecell (icke förnybar, från naturgasreformering) | O17: 2.68
A18: Energiåtgång borrning | D18: 2.5 | E18: MJ/m3 | G18: Just. Transportlängd Jord fyll | J18: 2 | K18: km
A19: Inverterat värmevärde Diesel | D19: 0.028345 | E19: l/MJ | G19: Inverterat värmevärde Diesel | J19: 0.028345 | K19: l/MJ | N19: Gemensamma miljökrav andel förnybara drivmedel, Antagande HVO som förnybart drivmedel
A20: Drivmedel klimatförbättrat alt. | D20: Gemensamma miljökrav | N20: Årtal | O20: Andel | P20: Motsv emmisionsfaktor
A21: Emissionsfaktor drivmedel | D21: =VLOOKUP(D20,N3:O15,2) -> 1.113 | E21: kg CO2e/l | I21: kg-> ton | K21: 0.001 | N21: 2024 | O21: 0.5 | P21: =(O21*$O$13)+((1-O21)*$O$4) -> 1.595
A22: Pumpning under byggtid | N22: 2025 | O22: 0.5 | P22: 1.595
A23: Energiåtgång pumpning | D23: 0.3 | E23: MJ/m3 | N23: 2026 | O23: 0.7 | P23: 1.113
A24: Inverterat värmevärde Diesel | D24: 0.028345 | E24: l/MJ | G24: Densitet Jord | I24: kg/m3 | K24: 1600 | N24: 2027 | O24: 0.7 | P24: 1.113
A25: Drivmedel klimatförbättrat alt. | D25: Gemensamma miljökrav | G25: Densitet Bergkross | I25: kg/m3 | K25: 1800 | N25: 2028 | O25: 0.9 | P25: 0.631
A26: Emissionsfaktor drivmedel | D26: =VLOOKUP(D25,N3:O15,2) -> 1.113 | E26: kg CO2e/l | G26: Densitet fast berg | I26: kg/m3 | K26: 2700 | N26: 2029 | O26: 0.9 | P26: 0.631
G27: Svällfaktor bergschakt | I27: m3/m3 | K27: 1.5 | N27: 2030 | O27: 1 | P27: 0.39
G28: Sprängmedel åtgång | I28: kg/m3 | K28: 0.5
G29: Lastbil landsväg | I29: MJ/tkm | K29: 1

Sheet Resultat
A1: Andel av totala Klimatpåverkan som respektive matrialtyp står för i de olika alternativen
A2: Materialtyp | B2: Andel - referenskalkyl | C2: Andel - gemensamma miljökrav | D2: Andel - klimatförbättrat alternativ | R2: Materialtyp | S2: Andel - referenskalkyl
A3: Anläggningssten | R3: Anläggningssten
A4: Asfalt | R4: Asfalt
A5: Bergmassor | R5: Bergmassor
A6: Betong | R6: Betong
A7: Jordmassor | R7: Jordmassor
A8: Ledning av plaströr | R8: Ledning av plaströr
A9: Stål | R9: Stål
A10: Lättfyllnad | R10: Lättfyllnad
A11: Stödmur | R11: Stödmur
A12: Grand Total | R12: Grand Total
R14: Materialtyp | S14: Andel - gemensamma miljökrav
R15: Anläggningssten
R16: Asfalt
R17: Bergmassor
R18: Betong
R19: Jordmassor
R20: Ledning av plaströr
R21: Stål
R22: Lättfyllnad
R23: Stödmur
R24: Grand Total
R26: Materialtyp | S26: Andel - klimatförbättrat alternativ
R27: Anläggningssten
R28: Asfalt
R29: Bergmassor
A30: Jämförelse av klimatpåverkan [kg CO2e] för respektive alternativ och materialtyp | R30: Betong
A31: Materialtyp | B31: Referenskalkyl | C31: Med gemensamma miljökrav | D31: Utgångsläge entreprenad | R31: Jordmassor
A32: Anläggningssten | B32: 0 | C32: 0 | D32: 0 | R32: Ledning av plaströr
A33: Asfalt | B33: 0 | C33: 0 | D33: 0 | R33: Stål
A34: Bergmassor | B34: 0 | C34: 0 | D34: 0 | R34: Lättfyllnad
A35: Betong | B35: 0 | C35: 0 | D35: 0 | R35: Stödmur
A36: Jordmassor | B36: 0 | C36: 0 | D36: 0 | R36: Grand Total
A37: Ledning av plaströr | B37: 0 | C37: 0 | D37: 0
A38: Stål | B38: 0 | C38: 0 | D38: 0
A39: Lättfyllnad | B39: 0 | C39: 0 | D39: 0
A40: Stödmur | B40: 0 | C40: 0 | D40: 0
A41: Grand Total | B41: 0 | C41: 0 | D41: 0

Sheet Resultat per materialtyp
B1: Jämförelse av klimatpåverkan [kg CO2e] per materialtyp för respektive alternativ
I3: Materialtyp | J3: Referenskalkyl | K3: Med gemensamma miljökrav | L3: Utgångsläge entreprenad
I4: Anläggningssten | J4: 0 | K4: 0 | L4: 0
I5: Grand Total | J5: 0 | K5: 0 | L5: 0
I19: Materialtyp | J19: Referenskalkyl | K19: Med gemensamma miljökrav | L19: Utgångsläge entreprenad
I20: Asfalt | J20: 0 | K20: 0 | L20: 0
I21: Grand Total | J21: 0 | K21: 0 | L21: 0
I35: Materialtyp | J35: Referenskalkyl | K35: Med gemensamma miljökrav | L35: Utgångsläge entreprenad
I36: Bergmassor | J36: 0 | K36: 0 | L36: 0
I37: Grand Total | J37: 0 | K37: 0 | L37: 0
I51: Materialtyp | J51: Referenskalkyl | K51: Med gemensamma miljökrav | L51: Utgångsläge entreprenad
I52: Betong | J52: 0 | K52: 0 | L52: 0
I53: Grand Total | J53: 0 | K53: 0 | L53: 0
I67: Materialtyp | J67: Referenskalkyl | K67: Med gemensamma miljökrav | L67: Utgångsläge entreprenad
I68: Jordmassor | J68: 0 | K68: 0 | L68: 0
I69: Grand Total | J69: 0 | K69: 0 | L69: 0
I83: Materialtyp | J83: Referenskalkyl | K83: Med gemensamma miljökrav | L83: Utgångsläge entreprenad
I84: Ledning av plaströr | J84: 0 | K84: 0 | L84: 0
I85: Grand Total | J85: 0 | K85: 0 | L85: 0
I99: Materialtyp | J99: Referenskalkyl | K99: Med gemensamma miljökrav | L99: Utgångsläge entreprenad
I100: Stål | J100: 0 | K100: 0 | L100: 0
I101: Grand Total | J101: 0 | K101: 0 | L101: 0
I115: Materialtyp | J115: Referenskalkyl | K115: Med gemensamma miljökrav | L115: Utgångsläge entreprenad
I116: Lättfyllnad | J116: 0 | K116: 0 | L116: 0
I117: Grand Total | J117: 0 | K117: 0 | L117: 0
I131: Materialtyp | J131: Referenskalkyl | K131: Med gemensamma miljökrav | L131: Utgångsläge entreprenad
I132: Stödmur | J132: 0 | K132: 0 | L132: 0
I133: Grand Total | J133: 0 | K133: 0 | L133: 0

Sheet Standardvärden
B1: Betong | I1: Asfalt | P1: Gemensamma miljökrav 2024 ver 2.0
B2: kg -> m3 | C2: 2350 | J2: Densitet | P2: Maximalt utsläpp (kg CO2ekv/kg)
B3: MJ/tkm | C3: 2.5 | I3: Abb | J3: 112.15 | P3: Årtal | Q3: ABT | R3: ABT PMB | S3: ABS | T3: ABS PMB | U3: ABb | V3: ABb PMB | W3: AG | X3: AG PMB | Y3: MJAG | Z3: MJOG | AA3: TSK | AB3: PGJA
B4: kg CO2e/l | C4: 2.8 | I4: ABS | J4: 89.72 | P4: 2024 | Q4: 0.034 | R4: 0.04 | S4: 0.04 | T4: 0.045 | U4: 0.03 | V4: 0.036 | W4: 0.028 | X4: 0.034
B5: l/MJ | C5: 0.028345 | I5: ABT | J5: 89.72 | P5: 2025 | Q5: 0.026 | R5: 0.034 | S5: 0.03 | T5: 0.038 | U5: 0.026 | V5: 0.031 | W5: 0.024 | X5: 0.029 | Y5: 0.022 | Z5: 0.022
B6: kg -> ton | C6: 0.001 | I6: AG | J6: 134.58 | P6: 2026 | Q6: 0.026 | R6: 0.034 | S6: 0.03 | T6: 0.038 | U6: 0.026 | V6: 0.031 | W6: 0.024 | X6: 0.029 | Y6: 0.022 | Z6: 0.022
A7: för 1 km | B7: Omräkning kg CO2/m3 | D7: =(1*1*Standardvärden!C2*Standardvärden!C6*C3*C4*C5) -> 0.46627525 | I7: MJAG/MJOG | J7: 112.15 | P7: 2027 | Q7: 0.024 | R7: 0.032 | S7: 0.027 | T7: 0.036 | U7: 0.024 | V7: 0.028 | W7: 0.022 | X7: 0.027 | Y7: 0.019 | Z7: 0.019
A8: för 1 km | B8: Summa transport kg CO2/m3 | D8: =D7 -> 0.46627525 | I8: ABb | J8: Omräkning kg CO2/m3 | M8: =(Standardvärden!K20*Standardvärden!$M$15*Standardvärden!$M$16*Standardvärden!$M$18) -> 0.01335134535 | N8: för 1 km | P8: 2028 | Q8: 0.024 | R8: 0.032 | S8: 0.027 | T8: 0.036 | U8: 0.024 | V8: 0.028 | W8: 0.022 | X8: 0.027 | Y8: 0.019 | Z8: 0.019
I9: ABS | J9: Omräkning kg CO2/m3 | M9: =(Standardvärden!K21*Standardvärden!$M$15*Standardvärden!$M$16*Standardvärden!$M$18) -> 0.01068107628 | P9: 2029 | Q9: 0.024 | R9: 0.032 | S9: 0.027 | T9: 0.036 | U9: 0.024 | V9: 0.028 | W9: 0.022 | X9: 0.027 | Y9: 0.019 | Z9: 0.019
B10: Stål | I10: ABT | J10: Omräkning kg CO2/m3 | M10: =(Standardvärden!K22*Standardvärden!$M$15*Standardvärden!$M$16*Standardvärden!$M$18) -> 0.01068107628 | P10: 2030 | Q10: 0.019 | R10: 0.029 | S10: 0.024 | T10: 0.033 | U10: 0.022 | V10: 0.026 | W10: 0.02 | X10: 0.025 | Y10: 0.016 | Z10: 0.016
B11: ton -> kg | C11: 1000 | I11: AG | J11: Omräkning kg CO2/m3 | M11: =(Standardvärden!K23*Standardvärden!$M$15*Standardvärden!$M$16*Standardvärden!$M$18) -> 0.01602161442
B12: Lastbil Landsväg | D12: 300 | I12: MJAG/MJOG | J12: Omräkning kg CO2/m3 | M12: =(Standardvärden!K24*Standardvärden!$M$15*Standardvärden!$M$16*Standardvärden!$M$18) -> 0.01335134535 | Q12: Lättfyllnad XPS | Y12: Lättfyllnad Skumglas
B13: Lastbil närdistr. | D13: 40 | I13: Generellt | J13: Omräkning kg CO2/m3 | M13: =(Standardvärden!$M$15*Standardvärden!$M$16*Standardvärden!$M$18) -> 0.119049 | Q13: Omvandlignsfaktorer | U13: landsväg | V13: 800 | Y13: Omvandlignsfaktorer | AC13: landsväg | AD13: 300
B14: Järnväg | D14: 500 | P14: Densitet XPS | R14: 30 | S14: kg/m3 | U14: närdistr | V14: 40 | X14: Densitet | Z14: 180 | AA14: kg/m3 | AC14: närdistr | AD14: 40
B15: Omräkningar transport landsväg | L15: MJ/tkm | M15: 1.5 | Q15: kg -> ton | R15: 0.001 | Y15: kg -> ton | Z15: 0.001
B16: MJ/tkm | C16: 1 | L16: kg CO2e/l | M16: 2.8
B17: kg CO2e/l | C17: 2.8 | L17: MJ/l | M17: 43.3
B18: MJ/l | C18: 43.3 | I18: Inverterat värmevärde | L18: l/MJ | M18: 0.028345 | T18: Omräkningar transport landsväg | AB18: Omräkningar transport landsväg
B19: Inverterat värmevärde | E19: l/MJ | F19: 0.028345 | J19: Omvandlingsfaktorer | T19: MJ/tkm | U19: 1 | AB19: MJ/tkm | AC19: 1
B20: Omräkning kg CO2/ton | E20: =(C16*C17*F19) -> 0.079366 | G20: för 1 km | I20: Abb | J20: m2 -> ton | K20: =K26*Standardvärden!J3 -> 0.11215 | T20: kg CO2e/l | U20: 2.8 | AB20: kg CO2e/l | AC20: 2.8
B21: Omräkningar transport närdistr. | I21: ABS | J21: m2 -> ton | K21: =K26*Standardvärden!J4 -> 0.08972 | T21: MJ/l | U21: 43.3 | AB21: MJ/l | AC21: 43.3
B22: MJ/tkm | C22: 2.5 | I22: ABT | J22: m2 -> ton | K22: =K26*Standardvärden!J5 -> 0.08972 | Q22: Inverterat värmevärde | T22: l/MJ | U22: 0.028345 | Y22: Inverterat värmevärde | AB22: l/MJ | AC22: 0.028345
B23: kg CO2e/l | C23: 2.8 | I23: AG | J23: m2 -> ton | K23: =K26*Standardvärden!J6 -> 0.13458
B24: MJ/l | C24: 43.3 | I24: MJAG/MJOG | J24: m2 -> ton | K24: =K26*Standardvärden!J7 -> 0.11215 | Q24: Omräkning kg CO2/m3 | T24: =(R14*R15*U19*U20*U22) -> 0.00238098 | V24: för 1 km | Y24: Omräkning kg CO2/m3 | AB24: =(Z14*Z15*AC19*AC20*AC22) -> 0.01428588 | AD24: för 1 km
B25: Inverterat värmevärde | E25: l/MJ | F25: 0.028345 | J25: ton -> kg | K25: 1000 | T25: Omräkningar transport närdistr. | AB25: Omräkningar transport närdistr.
B26: Omräkning kg CO2/ton | E26: =(C22*C23*F25) -> 0.198415 | G26: för 1 km | J26: kg -> ton | K26: 0.001 | T26: MJ/tkm | U26: 2.5 | AB26: MJ/tkm | AC26: 2.5
T27: kg CO2e/l | U27: 2.8 | AB27: kg CO2e/l | AC27: 2.8
D28: Omräkningar transport järnväg | T28: MJ/l | U28: 43.3 | AB28: MJ/l | AC28: 43.3
D29: MJ -> Kwh | E29: 0.27777778 | I29: Plast | Q29: Inverterat värmevärde | T29: l/MJ | U29: 0.028345 | Y29: Inverterat värmevärde | AB29: l/MJ | AC29: 0.028345
C30: El | D30: kg CO2e/kWh | E30: 0.012 | J30: Omvandlingsfaktorer
B31: Bränsleförbrukning | D31: MJ/tkm | E31: 0.3 | I31: Vikt dim 200 | K31: 3.6 | L31: kg/m | Q31: Omräkning kg CO2/m3 | T31: =(R14*R15*U26*U27*U29) -> 0.00595245 | V31: för 1 km | Y31: Omräkning kg CO2/m3 | AB31: =(Z14*Z15*AC26*AC27*AC29) -> 0.0357147 | AD31: för 1 km
B32: Summa transport kg CO2/ton | E32: =(E31*E30*Standardvärden!E29) -> 0.001000000008 | G32: för 1 km | I32: Vikt dim 225 | K32: 19 | L32: kg/m
B33: Viktat medelvärde transport | E33: =E20*(Standardvärden!D12/SUM(Standardvärden!D12:D14))+E26*(Standardvärden!D13/SUM(Standardvärden!D12:D14))+E32*(Standardvärden!D14/SUM(Standardvärden!D12:D14)) -> 0.03838857143 | G33: kg CO2/m3 | J33: kg -> ton | K33: 0.001 | Q33: Viktat medelvärde transport 840 km | U33: =T24*(V13/(V13+V14))+T31*(V14/(V13+V14)) -> 0.00255105 | V33: kg CO2/m3 | Y33: Viktat medelvärde transport 340 km | AC33: =AB24*(AD13/(AD13+AD14))+AB31*(AD14/(AD13+AD14)) -> 0.01680691765 | AD33: kg CO2/m3
B35: Anläggningssten | I35: Omräkningar transport landsväg
B36: Omvandlingsfaktorer | E36: landsväg | F36: 400 | J36: dim 200 | K36: dim 225
B37: kg -> m3 | C37: 2719 | E37: närdistr | F37: 40 | I37: MJ/tkm | J37: 1 | K37: 1
B38: kg -> ton | C38: 0.001 | I38: kg CO2e/l | J38: 2.8 | K38: 2.8
E39: Omräkningar transport landsväg | I39: MJ/l | J39: 43.3 | K39: 43.3 | S39: Lättfyllnad Lättklinker | AA39: Prefabricerad betong
E40: MJ/tkm | F40: 1 | I40: Inverterat värmevärde | L40: l/MJ | M40: 0.028345 | O40: 0.028345 | S40: Omvandlignsfaktorer | W40: landsväg | X40: 800 | AA40: Omvandlignsfaktorer | AE40: landsväg | AF40: 400
E41: kg CO2e/l | F41: 2.8 | R41: Densitet | T41: 268 | U41: kg/m3 | W41: närdistr | X41: 40 | Z41: Vikt per meter 1 m h | AB41: 420.5 | AC41: kg/m | AE41: närdistr | AF41: 40
E42: MJ/l | F42: 43.3 | I42: Omräkning kg CO2/m3 | M42: =(1*1*Standardvärden!K31*Standardvärden!K33*J37*J38*M40) -> 0.0002857176 | O42: =(1*1*Standardvärden!K32*Standardvärden!K33*K37*K38*O40) -> 0.001507954 | S42: kg -> ton | T42: 0.001 | Z42: Vikt per meter 2 m h | AB42: 940.5 | AC42: kg/m
B43: Inverterat värmevärde | E43: l/MJ | F43: 0.028345 | I43: Omräkningar transport närdistr. | AA43: kg -> ton | AB43: 0.001
J44: dim 200 | K44: dim 225
B45: Omräkning kg CO2/m3 | E45: =(Standardvärden!C37*Standardvärden!C38*F40*F41*F43) -> 0.215796154 | G45: för 1 km | I45: MJ/tkm | J45: 2.5 | K45: 2.5 | V45: Omräkningar transport landsväg | AD45: Omräkningar transport landsväg
E46: Omräkningar transport närdistr. | I46: kg CO2e/l | J46: 2.8 | K46: 2.8 | V46: MJ/tkm | W46: 1 | AD46: MJ/tkm | AE46: 1
E47: MJ/tkm | F47: 2.5 | I47: MJ/l | J47: 43.3 | K47: 43.3 | V47: kg CO2e/l | W47: 2.8 | AD47: kg CO2e/l | AE47: 2.8
E48: kg CO2e/l | F48: 2.8 | I48: Inverterat värmevärde | L48: l/MJ | M48: 0.028345 | O48: 0.028345 | V48: MJ/l | W48: 43.3 | AD48: MJ/l | AE48: 43.3
E49: MJ/l | F49: 43.3 | S49: Inverterat värmevärde | V49: l/MJ | W49: 0.028345 | AA49: Inverterat värmevärde | AD49: l/MJ | AE49: 0.028345
B50: Inverterat värmevärde | E50: l/MJ | F50: 0.028345 | I50: Omräkning kg CO2/m3 | M50: =(1*1*Standardvärden!K31*Standardvärden!K33*J45*J46*M48) -> 0.000714294 | O50: =(1*1*Standardvärden!K32*Standardvärden!K33*K45*K46*O48) -> 0.003769885
I51: Viktat medelvärde transport kg CO2/m | O51: =M42*(Standardvärden!K54/SUM(Standardvärden!K54:K55))+M50*(Standardvärden!K55/SUM(Standardvärden!K54:K55)) -> 0.000317464 | P51: =O42*(Standardvärden!K54/SUM(Standardvärden!K54:K55))+O50*(Standardvärden!K55/SUM(Standardvärden!K54:K55)) -> 0.001675504444 | Q51: för 1 km | S51: Omräkning kg CO2/m3 | V51: =(T41*T42*W46*W47*W49) -> 0.021270088 | X51: för 1 km | Z51: 1 m hög | AA51: Omräkning kg CO2/m | AD51: =(AB41*AB43*AE46*AE47*AE49) -> 0.033373403 | AF51: för 1 km
B52: Omräkning kg CO2/m3 | E52: =(Standardvärden!C37*Standardvärden!C38*F47*F48*F50) -> 0.539490385 | G52: för 1 km | J52: Transportparametrar | V52: Omräkningar transport närdistr. | Z52: 2 m hög | AA52: Omräkning kg CO2/m | AD52: =(AB42*AB43*AE46*AE47*AE49) -> 0.074643723 | AF52: för 1 km
K53: km | V53: MJ/tkm | W53: 2.5 | AD53: Omräkningar transport närdistr.
B54: Viktat medelvärde transport | E54: =E45*(F36/(F36+F37))+E52*(F37/(F36+F37)) -> 0.2452229023 | G54: kg CO2/m3 | I54: Lastbil Landsväg | K54: 500 | V54: kg CO2e/l | W54: 2.8 | AD54: MJ/tkm | AE54: 2.5
I55: Lastbil närdistr. | K55: 40 | V55: MJ/l | W55: 43.3 | AD55: kg CO2e/l | AE55: 2.8
S56: Inverterat värmevärde | V56: l/MJ | W56: 0.028345 | AD56: MJ/l | AE56: 43.3
AA57: Inverterat värmevärde | AD57: l/MJ | AE57: 0.028345
S58: Omräkning kg CO2/m3 | V58: =(T41*T42*W53*W54*W56) -> 0.05317522 | X58: för 1 km
Z59: 1 m hög | AA59: Omräkning kg CO2/m | AD59: =(AB41*AB43*AE54*AE55*AE57) -> 0.0834335075 | AF59: för 1 km
S60: Viktat medelvärde transport 840 km | W60: =V51*(X40/(X40+X41))+V58*(X41/(X40+X41)) -> 0.02278938 | X60: kg CO2/m3 | Z60: 2 m hög | AA60: Omräkning kg CO2/m | AD60: =(AB42*AB43*AE54*AE55*AE57) -> 0.1866093075 | AF60: för 1 km
AA62: Viktat medelvärde transport 1 m hög | AE62: =AD51*(AF40/(AF40+AF41))+AD59*(AF41/(AF40+AF41)) -> 0.03792432159 | AF62: kg CO2/m
AA63: Viktat medelvärde transport 2 m hög | AE63: =AD52*(AF40/(AF40+AF41))+AD60*(AF41/(AF40+AF41)) -> 0.0848224125 | AF63: kg CO2/m
